[Event "January 2 Late 2024"]
[Site "https://www.chess.com"]
[Date "2024.01.02"]
[Round "6"]
[White "Titus, Andrew"]
[Black "Federzoni, Enzo"]
[Result "0-1"]
[Board "89"]
[TimeControl "180+1"]
[WhiteFideId "2059770"]
[BlackFideId "2173301"]
[WhiteElo "2618"]
[BlackElo "2440"]
[WhiteTeam "USA"]
[BlackTeam "BRA"]
[WhiteClock "0:00:36"]
[BlackClock "0:00:29"]

1. e4 {[%clk 0:03:00]}  c6 {[%clk 0:02:56]} 2. d4 {[%clk 0:03:00]}  d5 {[%clk 0:02:57]} 3. Nd2 {[%clk 0:03:00]}  dxe4 {[%clk 0:02:58]} 4. Nxe4 {[%clk 0:03:00]}  Nf6 {[%clk 0:02:58]} 5. Nxf6+ {[%clk 0:02:59]}  exf6 {[%clk 0:02:59]} 6. c3 {[%clk 0:02:59]}  Bd6 {[%clk 0:02:59]} 7. Bd3 {[%clk 0:02:59]}  O-O {[%clk 0:03:00]} 8. Ne2 {[%clk 0:02:59]}  Re8 {[%clk 0:03:01]} 9. Qc2 {[%clk 0:02:59]}  h5 {[%clk 0:03:01]} 10. Be3 {[%clk 0:02:59]}  Nd7 {[%clk 0:02:59]} 11. O-O-O {[%clk 0:02:58]}  Nf8 {[%clk 0:03:00]} 12. c4 {[%clk 0:02:54]}  Be6 {[%clk 0:02:52]} 13. Nc3 {[%clk 0:02:47]}  Rc8 {[%clk 0:02:48]} 14. Ne4 {[%clk 0:02:40]}  b5 {[%clk 0:02:39]} 15. Kb1 {[%clk 0:02:32]}  bxc4 {[%clk 0:02:33]} 16. Bxc4 {[%clk 0:02:30]}  Bxc4 {[%clk 0:02:31]} 17. Nxd6 {[%clk 0:02:28]}  Bxa2+ {[%clk 0:02:32]} 18. Kxa2 {[%clk 0:02:28]}  Qxd6 {[%clk 0:02:31]} 19. Rd3 {[%clk 0:02:21]}  Ne6 {[%clk 0:02:24]} 20. Rc1 {[%clk 0:02:11]}  Qd5+ {[%clk 0:02:05]} 21. Kb1 {[%clk 0:02:05]}  Qxg2 {[%clk 0:02:06]} 22. h4 {[%clk 0:02:00]}  Qe4 {[%clk 0:02:02]} 23. Ra3 {[%clk 0:01:58]}  Qxc2+ {[%clk 0:02:01]} 24. Rxc2 {[%clk 0:01:57]}  Rc7 {[%clk 0:01:49]} 25. Ra5 {[%clk 0:01:54]}  g6 {[%clk 0:01:44]} 26. Ra6 {[%clk 0:01:49]}  Rd8 {[%clk 0:01:42]} 27. Rcxc6 {[%clk 0:01:47]}  Rxc6 {[%clk 0:01:39]} 28. Rxc6 {[%clk 0:01:48]}  Nxd4 {[%clk 0:01:34]} 29. Rxf6 {[%clk 0:01:46]}  Ne6 {[%clk 0:01:09]} 30. Bxa7 {[%clk 0:01:39]}  Rd3 {[%clk 0:01:09]} 31. Be3 {[%clk 0:01:37]}  Rd1+ {[%clk 0:01:06]} 32. Kc2 {[%clk 0:01:33]}  Rh1 {[%clk 0:01:06]} 33. b4 {[%clk 0:01:24]}  Rxh4 {[%clk 0:01:05]} 34. Kc3 {[%clk 0:01:20]}  Nc7 {[%clk 0:01:03]} 35. Rc6 {[%clk 0:01:12]}  Nd5+ {[%clk 0:01:01]} 36. Kd2 {[%clk 0:01:03]}  Nxe3 {[%clk 0:00:58]} 37. Kxe3 {[%clk 0:01:02]}  Rxb4 {[%clk 0:00:58]} 38. Kf3 {[%clk 0:01:00]}  Kg7 {[%clk 0:00:58]} 39. Kg3 {[%clk 0:01:01]}  g5 {[%clk 0:00:55]} 40. f3 {[%clk 0:01:00]}  f6 {[%clk 0:00:55]} 41. Ra6 {[%clk 0:00:58]}  Kg6 {[%clk 0:00:55]} 42. Rc6 {[%clk 0:00:55]}  Rb3 {[%clk 0:00:56]} 43. Kg2 {[%clk 0:00:55]}  g4 {[%clk 0:00:50]} 44. f4 {[%clk 0:00:52]}  Rf3 {[%clk 0:00:46]} 45. Rc4 {[%clk 0:00:52]}  Kf5 {[%clk 0:00:45]} 46. Rc5+ {[%clk 0:00:52]}  Kxf4 {[%clk 0:00:43]} 47. Rxh5 {[%clk 0:00:49]}  Ra3 {[%clk 0:00:43]} 48. Rb5 {[%clk 0:00:48]}  Ra2+ {[%clk 0:00:42]} 49. Kg1 {[%clk 0:00:48]}  f5 {[%clk 0:00:40]} 50. Rb3 {[%clk 0:00:45]}  Kg5 {[%clk 0:00:39]} 51. Rb5 {[%clk 0:00:44]}  Kf4 {[%clk 0:00:38]} 52. Rb4+ {[%clk 0:00:44]}  Kg3 {[%clk 0:00:36]} 53. Rb3+ {[%clk 0:00:44]}  Kh4 {[%clk 0:00:34]} 54. Rb4 {[%clk 0:00:44]}  Kh3 {[%clk 0:00:31]} 55. Rf4 {[%clk 0:00:37]}  Ra1+ {[%clk 0:00:27]} 56. Kf2 {[%clk 0:00:33]}  g3+ {[%clk 0:00:27]} 57. Ke2 {[%clk 0:00:32]}  g2 {[%clk 0:00:24]} 58. Rxf5 {[%clk 0:00:32]}  g1=Q {[%clk 0:00:24]} 59. Rf3+ {[%clk 0:00:32]}  Kg4 {[%clk 0:00:24]} 60. Rc3 {[%clk 0:00:31]}  Ra2+ {[%clk 0:00:23]} 61. Kd3 {[%clk 0:00:31]}  Qg3+ {[%clk 0:00:23]} 62. Kc4 {[%clk 0:00:31]}  Ra4+ {[%clk 0:00:23]} 63. Kb3 {[%clk 0:00:31]}  Qxc3+ {[%clk 0:00:23]} 64. Kxc3 {[%clk 0:00:30]}  Re4 {[%clk 0:00:23]} 65. Kb3 {[%clk 0:00:31]}  Kf4 {[%clk 0:00:24]} 66. Kc3 {[%clk 0:00:32]}  Ke3 {[%clk 0:00:25]} 67. Kc2 {[%clk 0:00:32]}  Rd4 {[%clk 0:00:26]} 68. Kb3 {[%clk 0:00:32]}  Kd3 {[%clk 0:00:26]} 69. Ka3 {[%clk 0:00:32]}  Rc4 {[%clk 0:00:26]} 70. Kb3 {[%clk 0:00:32]}  Kd4 {[%clk 0:00:26]} 71. Kb2 {[%clk 0:00:33]}  Rc3 {[%clk 0:00:26]} 72. Ka2 {[%clk 0:00:34]}  Kc4 {[%clk 0:00:27]} 73. Kb2 {[%clk 0:00:35]}  Kb4 {[%clk 0:00:27]} 74. Ka1 {[%clk 0:00:35]}  Kb3 {[%clk 0:00:27]} 75. Kb1 {[%clk 0:00:35]}  Rc4 {[%clk 0:00:28]} 76. Ka1 {[%clk 0:00:36]}  Rc1# {[%clk 0:00:29]} 0-1

[Event "January 2 Late 2024"]
[Site "https://www.chess.com"]
[Date "2024.01.02"]
[Round "6"]
[White "Xie, Bryan"]
[Black "Golubev, Mikhail"]
[Result "0-1"]
[Board "90"]
[TimeControl "180+1"]
[WhiteFideId "30941296"]
[BlackFideId "14100983"]
[WhiteElo "2438"]
[BlackElo "2616"]
[WhiteTeam "USA"]
[BlackTeam "UKR"]
[WhiteClock "0:01:27"]
[BlackClock "0:01:23"]

1. e4 {[%clk 0:02:48]}  c5 {[%clk 0:02:59]} 2. Nf3 {[%clk 0:02:48]}  Nc6 {[%clk 0:02:59]} 3. d4 {[%clk 0:02:48]}  cxd4 {[%clk 0:02:58]} 4. Nxd4 {[%clk 0:02:49]}  Nf6 {[%clk 0:02:58]} 5. Nc3 {[%clk 0:02:45]}  d6 {[%clk 0:02:58]} 6. Bg5 {[%clk 0:02:45]}  e6 {[%clk 0:02:58]} 7. Qd2 {[%clk 0:02:44]}  a6 {[%clk 0:02:58]} 8. O-O-O {[%clk 0:02:44]}  Bd7 {[%clk 0:02:58]} 9. f4 {[%clk 0:02:44]}  Be7 {[%clk 0:02:58]} 10. Nf3 {[%clk 0:02:43]}  b5 {[%clk 0:02:56]} 11. Bxf6 {[%clk 0:02:40]}  gxf6 {[%clk 0:02:56]} 12. Kb1 {[%clk 0:02:41]}  Qb6 {[%clk 0:02:54]} 13. Be2 {[%clk 0:02:37]}  O-O-O {[%clk 0:02:48]} 14. f5 {[%clk 0:02:37]}  Kb8 {[%clk 0:02:46]} 15. fxe6 {[%clk 0:02:24]}  fxe6 {[%clk 0:02:43]} 16. Qh6 {[%clk 0:02:24]}  Rdg8 {[%clk 0:02:32]} 17. g3 {[%clk 0:02:24]}  Ne5 {[%clk 0:02:16]} 18. Nxe5 {[%clk 0:02:21]}  fxe5 {[%clk 0:02:14]} 19. Rhf1 {[%clk 0:02:21]}  b4 {[%clk 0:01:57]} 20. Na4 {[%clk 0:02:11]}  Bxa4 {[%clk 0:01:57]} 21. Qxe6 {[%clk 0:02:12]}  Qc7 {[%clk 0:01:46]} 22. b3 {[%clk 0:02:08]}  Rg6 {[%clk 0:01:38]} 23. Qh3 {[%clk 0:01:37]}  Bd7 {[%clk 0:01:29]} 24. Qh5 {[%clk 0:01:30]}  Be6 {[%clk 0:01:25]} 25. Bxa6 {[%clk 0:01:27]}  Bg4 {[%clk 0:01:23]} 0-1

[Event "January 2 Late 2024"]
[Site "https://www.chess.com"]
[Date "2024.01.02"]
[Round "6"]
[White "Luo, Terry"]
[Black "Blanco Diez, David"]
[Result "1-0"]
[Board "91"]
[TimeControl "180+1"]
[WhiteFideId "30931045"]
[BlackFideId "32032927"]
[WhiteElo "2614"]
[BlackElo "2435"]
[WhiteTeam "USA"]
[BlackTeam "ESP"]
[WhiteClock "0:00:24"]
[BlackClock "0:00:10"]

1. d4 {[%clk 0:03:00]}  d5 {[%clk 0:02:59]} 2. c4 {[%clk 0:03:00]}  dxc4 {[%clk 0:02:59]} 3. e3 {[%clk 0:02:59]}  e5 {[%clk 0:02:57]} 4. Bxc4 {[%clk 0:02:58]}  exd4 {[%clk 0:02:57]} 5. exd4 {[%clk 0:02:57]}  Bd6 {[%clk 0:02:55]} 6. Nf3 {[%clk 0:02:56]}  Nf6 {[%clk 0:02:55]} 7. O-O {[%clk 0:02:57]}  O-O {[%clk 0:02:55]} 8. Nc3 {[%clk 0:02:57]}  Nc6 {[%clk 0:02:55]} 9. h3 {[%clk 0:02:56]}  h6 {[%clk 0:02:55]} 10. Re1 {[%clk 0:02:56]}  a6 {[%clk 0:02:54]} 11. Bb3 {[%clk 0:02:53]}  Bf5 {[%clk 0:02:46]} 12. Ne5 {[%clk 0:02:53]}  Na5 {[%clk 0:02:23]} 13. Bc2 {[%clk 0:02:25]}  Bxc2 {[%clk 0:02:21]} 14. Qxc2 {[%clk 0:02:26]}  Rc8 {[%clk 0:02:04]} 15. a3 {[%clk 0:02:20]}  c5 {[%clk 0:01:39]} 16. dxc5 {[%clk 0:02:10]}  Rxc5 {[%clk 0:01:39]} 17. Bf4 {[%clk 0:01:58]}  Nc4 {[%clk 0:01:27]} 18. Nxc4 {[%clk 0:01:01]}  Bxf4 {[%clk 0:01:27]} 19. Qb3 {[%clk 0:00:58]}  Qc7 {[%clk 0:01:21]} 20. Ne3 {[%clk 0:00:58]}  Be5 {[%clk 0:01:15]} 21. Ncd5 {[%clk 0:00:56]}  Qb8 {[%clk 0:00:47]} 22. Rac1 {[%clk 0:00:44]}  Rxc1 {[%clk 0:00:44]} 23. Rxc1 {[%clk 0:00:45]}  Rd8 {[%clk 0:00:39]} 24. Rd1 {[%clk 0:00:40]}  Nxd5 {[%clk 0:00:37]} 25. Nxd5 {[%clk 0:00:40]}  b5 {[%clk 0:00:23]} 26. g3 {[%clk 0:00:39]}  Re8 {[%clk 0:00:20]} 27. Kg2 {[%clk 0:00:35]}  Qb7 {[%clk 0:00:20]} 28. Qf3 {[%clk 0:00:35]}  Bxb2 {[%clk 0:00:18]} 29. Nf6+ {[%clk 0:00:33]}  Bxf6 {[%clk 0:00:17]} 30. Qxb7 {[%clk 0:00:34]}  Re2 {[%clk 0:00:17]} 31. Qxa6 {[%clk 0:00:31]}  Rb2 {[%clk 0:00:16]} 32. Rb1 {[%clk 0:00:22]}  Rxb1 {[%clk 0:00:14]} 33. Qc8+ {[%clk 0:00:22]}  Kh7 {[%clk 0:00:12]} 34. Qc2+ {[%clk 0:00:22]}  g6 {[%clk 0:00:12]} 35. Qxb1 {[%clk 0:00:23]}  Kg7 {[%clk 0:00:13]} 36. Qxb5 {[%clk 0:00:22]}  h5 {[%clk 0:00:14]} 37. a4 {[%clk 0:00:23]}  Kh6 {[%clk 0:00:15]} 38. h4 {[%clk 0:00:23]}  g5 {[%clk 0:00:15]} 39. hxg5+ {[%clk 0:00:24]}  Kg6 {[%clk 0:00:15]} 40. gxf6 {[%clk 0:00:24]}  Kh6 {[%clk 0:00:15]} 41. a5 {[%clk 0:00:24]}  Kh7 {[%clk 0:00:16]} 42. a6 {[%clk 0:00:25]}  Kg6 {[%clk 0:00:17]} 43. a7 {[%clk 0:00:25]}  Kh6 {[%clk 0:00:18]} 44. a8=Q {[%clk 0:00:25]}  Kg6 {[%clk 0:00:18]} 45. Qh8 {[%clk 0:00:24]}  h4 {[%clk 0:00:10]} 46. Qbh5# {[%clk 0:00:24]} 1-0

[Event "January 2 Late 2024"]
[Site "https://www.chess.com"]
[Date "2024.01.02"]
[Round "6"]
[White "Weinstein, Norman"]
[Black "Poltorak, Sebastian"]
[Result "0-1"]
[Board "92"]
[TimeControl "180+1"]
[WhiteFideId "2000466"]
[BlackFideId "1199498"]
[WhiteElo "2422"]
[BlackElo "2612"]
[WhiteTeam "USA"]
[BlackTeam "POL"]
[WhiteClock "0:01:26"]
[BlackClock "0:01:42"]

1. e4 {[%clk 0:02:59]}  c6 {[%clk 0:02:58]} 2. d4 {[%clk 0:02:59]}  d5 {[%clk 0:02:59]} 3. exd5 {[%clk 0:03:00]}  cxd5 {[%clk 0:02:59]} 4. c4 {[%clk 0:03:00]}  Nf6 {[%clk 0:02:59]} 5. Nc3 {[%clk 0:03:01]}  Nc6 {[%clk 0:02:59]} 6. Nf3 {[%clk 0:03:01]}  e6 {[%clk 0:02:54]} 7. a3 {[%clk 0:03:01]}  dxc4 {[%clk 0:02:52]} 8. Bxc4 {[%clk 0:03:00]}  Be7 {[%clk 0:02:53]} 9. O-O {[%clk 0:03:01]}  O-O {[%clk 0:02:53]} 10. Re1 {[%clk 0:03:01]}  b6 {[%clk 0:02:52]} 11. d5 {[%clk 0:03:01]}  Na5 {[%clk 0:02:37]} 12. Ba2 {[%clk 0:02:59]}  exd5 {[%clk 0:02:23]} 13. Nxd5 {[%clk 0:02:59]}  Nxd5 {[%clk 0:02:10]} 14. Qxd5 {[%clk 0:02:58]}  Be6 {[%clk 0:02:03]} 15. Qxd8 {[%clk 0:02:54]}  Raxd8 {[%clk 0:02:02]} 16. Bxe6 {[%clk 0:02:54]}  fxe6 {[%clk 0:02:03]} 17. Rxe6 {[%clk 0:02:28]}  Nb3 {[%clk 0:01:51]} 18. Rb1 {[%clk 0:02:28]}  Rd1+ {[%clk 0:01:49]} 19. Re1 {[%clk 0:02:27]}  Rxe1+ {[%clk 0:01:43]} 20. Nxe1 {[%clk 0:02:27]}  Bc5 {[%clk 0:01:43]} 21. Nd3 {[%clk 0:01:26]}  Rd8 {[%clk 0:01:42]} 0-1

[Event "January 2 Late 2024"]
[Site "https://www.chess.com"]
[Date "2024.01.02"]
[Round "6"]
[White "Khodabandeh, Milad"]
[Black "Coca Cubillos, Jesus Alberto"]
[Result "0-1"]
[Board "93"]
[TimeControl "180+1"]
[WhiteFideId "12538620"]
[BlackFideId "4462912"]
[WhiteElo "2388"]
[BlackElo "2612"]
[WhiteTeam "IRI"]
[BlackTeam "COL"]
[WhiteClock "0:00:01"]
[BlackClock "0:01:44"]

1. e4 {[%clk 0:03:00]}  g6 {[%clk 0:03:00]} 2. d4 {[%clk 0:03:01]}  Bg7 {[%clk 0:03:00]} 3. Nc3 {[%clk 0:03:01]}  d6 {[%clk 0:03:01]} 4. f4 {[%clk 0:03:01]}  Nc6 {[%clk 0:03:01]} 5. Nf3 {[%clk 0:03:01]}  Bg4 {[%clk 0:03:02]} 6. Bb5 {[%clk 0:03:00]}  a6 {[%clk 0:02:55]} 7. h3 {[%clk 0:02:51]}  Bxf3 {[%clk 0:02:50]} 8. Bxc6+ {[%clk 0:02:51]}  bxc6 {[%clk 0:02:50]} 9. gxf3 {[%clk 0:02:51]}  e6 {[%clk 0:02:48]} 10. b3 {[%clk 0:02:43]}  Qh4+ {[%clk 0:02:47]} 11. Kf1 {[%clk 0:02:36]}  Ne7 {[%clk 0:02:41]} 12. Ne2 {[%clk 0:02:33]}  O-O {[%clk 0:02:40]} 13. Qe1 {[%clk 0:02:28]}  Qh5 {[%clk 0:02:35]} 14. Qg3 {[%clk 0:02:25]}  a5 {[%clk 0:02:32]} 15. Qg4 {[%clk 0:02:22]}  Qb5 {[%clk 0:02:32]} 16. Bd2 {[%clk 0:01:45]}  f5 {[%clk 0:02:28]} 17. Qg3 {[%clk 0:01:20]}  fxe4 {[%clk 0:02:14]} 18. fxe4 {[%clk 0:01:16]}  c5 {[%clk 0:02:15]} 19. c4 {[%clk 0:01:14]}  Qb7 {[%clk 0:02:14]} 20. Qd3 {[%clk 0:01:06]}  cxd4 {[%clk 0:02:14]} 21. Nxd4 {[%clk 0:00:44]}  c5 {[%clk 0:02:06]} 22. Nc2 {[%clk 0:00:38]}  Bxa1 {[%clk 0:02:03]} 23. Nxa1 {[%clk 0:00:39]}  d5 {[%clk 0:02:03]} 24. cxd5 {[%clk 0:00:12]}  exd5 {[%clk 0:02:00]} 25. e5 {[%clk 0:00:10]}  d4 {[%clk 0:01:57]} 26. Rh2 {[%clk 0:00:09]}  Nd5 {[%clk 0:01:54]} 27. Rf2 {[%clk 0:00:08]}  Rae8 {[%clk 0:01:49]} 28. Nc2 {[%clk 0:00:08]}  Qf7 {[%clk 0:01:49]} 29. Bxa5 {[%clk 0:00:04]}  Nxf4 {[%clk 0:01:46]} 30. Qc4 {[%clk 0:00:05]}  Qxc4+ {[%clk 0:01:45]} 31. bxc4 {[%clk 0:00:05]}  Nd3 {[%clk 0:01:45]} 32. Rxf8+ {[%clk 0:00:05]}  Rxf8+ {[%clk 0:01:46]} 33. Ke2 {[%clk 0:00:05]}  Nxe5 {[%clk 0:01:47]} 34. Ne1 {[%clk 0:00:05]}  Nxc4 {[%clk 0:01:47]} 35. Bc7 {[%clk 0:00:04]}  Re8+ {[%clk 0:01:47]} 36. Kd1 {[%clk 0:00:02]}  Ne3+ {[%clk 0:01:44]} 37. Kc1 {[%clk 0:00:02]}  c4 {[%clk 0:01:44]} 38. Nc2 {[%clk 0:00:02]}  Nxc2 {[%clk 0:01:44]} 39. Kxc2 {[%clk 0:00:02]}  Re2+ {[%clk 0:01:45]} 40. Kd1 {[%clk 0:00:02]}  Rxa2 {[%clk 0:01:44]} 41. Bb6 {[%clk 0:00:01]}  d3 {[%clk 0:01:44]} 0-1

[Event "January 2 Late 2024"]
[Site "https://www.chess.com"]
[Date "2024.01.02"]
[Round "6"]
[White "Ambartsumova, Karina"]
[Black "Bueno, Alfeu Junior Varela"]
[Result "1-0"]
[Board "94"]
[TimeControl "180+1"]
[WhiteFideId "4166299"]
[BlackFideId "2108879"]
[WhiteElo "2611"]
[BlackElo "2390"]
[WhiteTeam "RUS"]
[BlackTeam "BRA"]
[WhiteClock "0:00:34"]
[BlackClock "0:00:02"]

1. d4 {[%clk 0:03:00]}  e6 {[%clk 0:02:58]} 2. c4 {[%clk 0:03:01]}  f5 {[%clk 0:02:58]} 3. Nc3 {[%clk 0:02:59]}  b6 {[%clk 0:02:58]} 4. Nf3 {[%clk 0:02:59]}  Bb4 {[%clk 0:02:57]} 5. g3 {[%clk 0:02:56]}  Bxc3+ {[%clk 0:02:56]} 6. bxc3 {[%clk 0:02:57]}  Bb7 {[%clk 0:02:57]} 7. Bg2 {[%clk 0:02:57]}  Nf6 {[%clk 0:02:57]} 8. O-O {[%clk 0:02:53]}  O-O {[%clk 0:02:56]} 9. d5 {[%clk 0:02:43]}  Ne4 {[%clk 0:02:36]} 10. Nd4 {[%clk 0:02:09]}  Qf6 {[%clk 0:02:33]} 11. Nb5 {[%clk 0:01:54]}  Nxc3 {[%clk 0:02:22]} 12. Nxc3 {[%clk 0:01:35]}  Qxc3 {[%clk 0:02:23]} 13. Bd2 {[%clk 0:01:26]}  Qxc4 {[%clk 0:02:11]} 14. Rc1 {[%clk 0:01:23]}  Qxa2 {[%clk 0:02:10]} 15. Bb4 {[%clk 0:01:11]}  c5 {[%clk 0:00:35]} 16. dxc6 {[%clk 0:01:07]}  Bxc6 {[%clk 0:00:26]} 17. Bxf8 {[%clk 0:01:04]}  Kxf8 {[%clk 0:00:27]} 18. Bxc6 {[%clk 0:00:56]}  Nxc6 {[%clk 0:00:28]} 19. Qxd7 {[%clk 0:00:55]}  Ne7 {[%clk 0:00:28]} 20. Rc7 {[%clk 0:00:52]}  Qa3 {[%clk 0:00:23]} 21. Qxe6 {[%clk 0:00:49]}  Re8 {[%clk 0:00:14]} 22. Rd1 {[%clk 0:00:49]}  Qb4 {[%clk 0:00:08]} 23. Rdd7 {[%clk 0:00:46]}  Qe4 {[%clk 0:00:08]} 24. Qxe4 {[%clk 0:00:35]}  fxe4 {[%clk 0:00:09]} 25. Rxa7 {[%clk 0:00:35]}  Rb8 {[%clk 0:00:02]} 26. Rxe7 {[%clk 0:00:34]} 1-0

[Event "January 2 Late 2024"]
[Site "https://www.chess.com"]
[Date "2024.01.02"]
[Round "6"]
[White "uzkuzk"]
[Black "Gontcharov, Vladislav"]
[Result "1-0"]
[Board "96"]
[TimeControl "180+1"]
[BlackFideId "4123492"]
[WhiteElo "2358"]
[BlackElo "2604"]
[BlackTeam "RUS"]
[WhiteClock "0:00:37"]
[BlackClock "0:00:00"]

1. e4 {[%clk 0:02:52]}  e6 {[%clk 0:02:57]} 2. d4 {[%clk 0:02:50]}  d5 {[%clk 0:02:57]} 3. Nc3 {[%clk 0:02:49]}  Nc6 {[%clk 0:02:56]} 4. Nge2 {[%clk 0:02:43]}  Bb4 {[%clk 0:02:35]} 5. a3 {[%clk 0:02:41]}  Bxc3+ {[%clk 0:02:35]} 6. Nxc3 {[%clk 0:02:42]}  dxe4 {[%clk 0:02:35]} 7. Bb5 {[%clk 0:02:41]}  f5 {[%clk 0:02:33]} 8. Bxc6+ {[%clk 0:02:36]}  bxc6 {[%clk 0:02:32]} 9. f3 {[%clk 0:02:34]}  exf3 {[%clk 0:02:24]} 10. Qxf3 {[%clk 0:02:33]}  Bd7 {[%clk 0:02:24]} 11. Bf4 {[%clk 0:02:29]}  Nf6 {[%clk 0:02:23]} 12. O-O-O {[%clk 0:02:27]}  O-O {[%clk 0:02:22]} 13. h3 {[%clk 0:02:20]}  Rb8 {[%clk 0:02:00]} 14. Be5 {[%clk 0:02:17]}  Rb7 {[%clk 0:01:50]} 15. Ne2 {[%clk 0:01:57]}  Qb8 {[%clk 0:01:41]} 16. b3 {[%clk 0:01:54]}  Qe8 {[%clk 0:01:38]} 17. Nf4 {[%clk 0:01:49]}  a5 {[%clk 0:01:37]} 18. a4 {[%clk 0:01:44]}  Ne4 {[%clk 0:01:25]} 19. g4 {[%clk 0:01:33]}  Qe7 {[%clk 0:01:09]} 20. Kb2 {[%clk 0:01:27]}  c5 {[%clk 0:01:01]} 21. gxf5 {[%clk 0:01:25]}  exf5 {[%clk 0:00:53]} 22. Rhg1 {[%clk 0:01:24]}  Rf7 {[%clk 0:00:53]} 23. Nh5 {[%clk 0:01:00]}  g6 {[%clk 0:00:39]} 24. Qf4 {[%clk 0:00:53]}  cxd4 {[%clk 0:00:26]} 25. Bxd4 {[%clk 0:00:46]}  Bxa4 {[%clk 0:00:24]} 26. Qh6 {[%clk 0:00:40]}  Bxb3 {[%clk 0:00:00]} 27. Rxg6+ {[%clk 0:00:37]} 1-0

[Event "January 2 Late 2024"]
[Site "https://www.chess.com"]
[Date "2024.01.02"]
[Round "6"]
[White "Lopez Del Alamo, Antonio"]
[Black "Palczert, Matyas"]
[Result "0-1"]
[Board "98"]
[TimeControl "180+1"]
[WhiteFideId "2227339"]
[BlackFideId "784958"]
[WhiteElo "2297"]
[BlackElo "2586"]
[WhiteTeam "ESP"]
[BlackTeam "HUN"]
[WhiteClock "0:00:00"]
[BlackClock "0:01:29"]

1. e4 {[%clk 0:03:00]}  c5 {[%clk 0:02:52]} 2. Nf3 {[%clk 0:02:59]}  e6 {[%clk 0:02:51]} 3. d3 {[%clk 0:02:58]}  Nc6 {[%clk 0:02:48]} 4. g3 {[%clk 0:02:58]}  g6 {[%clk 0:02:47]} 5. Bg2 {[%clk 0:02:57]}  Bg7 {[%clk 0:02:47]} 6. O-O {[%clk 0:02:56]}  Nge7 {[%clk 0:02:47]} 7. c3 {[%clk 0:02:56]}  e5 {[%clk 0:02:47]} 8. a3 {[%clk 0:02:51]}  O-O {[%clk 0:02:43]} 9. b4 {[%clk 0:02:51]}  d6 {[%clk 0:02:39]} 10. b5 {[%clk 0:02:36]}  Na5 {[%clk 0:02:38]} 11. d4 {[%clk 0:02:36]}  exd4 {[%clk 0:02:35]} 12. cxd4 {[%clk 0:02:35]}  Be6 {[%clk 0:02:27]} 13. a4 {[%clk 0:02:11]}  Nb3 {[%clk 0:02:18]} 14. Ra3 {[%clk 0:02:08]}  Nxc1 {[%clk 0:02:11]} 15. Qxc1 {[%clk 0:02:07]}  cxd4 {[%clk 0:02:11]} 16. Rd1 {[%clk 0:02:04]}  Rc8 {[%clk 0:02:09]} 17. Qd2 {[%clk 0:01:57]}  Qb6 {[%clk 0:02:04]} 18. Ne1 {[%clk 0:00:53]}  d5 {[%clk 0:01:51]} 19. Nd3 {[%clk 0:00:17]}  dxe4 {[%clk 0:01:48]} 20. Bxe4 {[%clk 0:00:18]}  Bd5 {[%clk 0:01:46]} 21. Re1 {[%clk 0:00:08]}  Bxe4 {[%clk 0:01:44]} 22. Rxe4 {[%clk 0:00:09]}  Nd5 {[%clk 0:01:44]} 23. Qe1 {[%clk 0:00:07]}  Nc3 {[%clk 0:01:35]} 24. Nxc3 {[%clk 0:00:06]}  dxc3 {[%clk 0:01:36]} 25. Ra1 {[%clk 0:00:01]}  Qd6 {[%clk 0:01:30]} 26. Rc1 {[%clk 0:00:00]}  Qxd3 {[%clk 0:01:29]} 0-1

[Event "January 2 Late 2024"]
[Site "https://www.chess.com"]
[Date "2024.01.02"]
[Round "6"]
[White "Shapiro, Viktor"]
[Black "Ghosh, Chanchal Kumer"]
[Result "0-1"]
[Board "99"]
[TimeControl "180+1"]
[WhiteFideId "4175700"]
[BlackFideId "10201858"]
[WhiteElo "2515"]
[BlackElo "2137"]
[WhiteTeam "RUS"]
[BlackTeam "BAN"]
[WhiteClock "0:00:00"]
[BlackClock "0:00:18"]

1. c4 {[%clk 0:03:00]}  e5 {[%clk 0:02:59]} 2. Nc3 {[%clk 0:03:01]}  Bc5 {[%clk 0:02:58]} 3. g3 {[%clk 0:02:59]}  Nc6 {[%clk 0:02:56]} 4. Bg2 {[%clk 0:03:00]}  a6 {[%clk 0:02:54]} 5. e3 {[%clk 0:03:00]}  d6 {[%clk 0:02:50]} 6. Nge2 {[%clk 0:03:01]}  Ba7 {[%clk 0:02:49]} 7. d4 {[%clk 0:03:00]}  exd4 {[%clk 0:02:49]} 8. exd4 {[%clk 0:03:01]}  Nge7 {[%clk 0:02:49]} 9. O-O {[%clk 0:03:01]}  h5 {[%clk 0:02:47]} 10. h3 {[%clk 0:02:56]}  Nf5 {[%clk 0:02:44]} 11. Re1 {[%clk 0:02:50]}  Kf8 {[%clk 0:02:41]} 12. d5 {[%clk 0:02:48]}  Ne5 {[%clk 0:02:38]} 13. b3 {[%clk 0:02:45]}  Qf6 {[%clk 0:02:30]} 14. Bf4 {[%clk 0:02:35]}  Ng6 {[%clk 0:02:23]} 15. Ne4 {[%clk 0:02:33]}  Qd8 {[%clk 0:02:09]} 16. Bg5 {[%clk 0:02:30]}  f6 {[%clk 0:02:09]} 17. Nf4 {[%clk 0:02:25]}  Ne5 {[%clk 0:01:54]} 18. Bxf6 {[%clk 0:01:41]}  gxf6 {[%clk 0:01:48]} 19. Nxh5 {[%clk 0:01:42]}  Rh6 {[%clk 0:01:30]} 20. Rc1 {[%clk 0:01:22]}  Qe7 {[%clk 0:01:28]} 21. b4 {[%clk 0:01:12]}  Qf7 {[%clk 0:01:28]} 22. Nf4 {[%clk 0:01:07]}  Bd7 {[%clk 0:01:20]} 23. c5 {[%clk 0:01:07]}  Kg8 {[%clk 0:01:13]} 24. g4 {[%clk 0:00:55]}  Nh4 {[%clk 0:01:04]} 25. cxd6 {[%clk 0:00:55]}  cxd6 {[%clk 0:01:02]} 26. Nxd6 {[%clk 0:00:53]}  Qf8 {[%clk 0:00:58]} 27. Ne4 {[%clk 0:00:46]}  f5 {[%clk 0:00:54]} 28. Nc5 {[%clk 0:00:34]}  Bxc5 {[%clk 0:00:48]} 29. Rxc5 {[%clk 0:00:32]}  Nxg2 {[%clk 0:00:45]} 30. Nxg2 {[%clk 0:00:25]}  Qd6 {[%clk 0:00:32]} 31. g5 {[%clk 0:00:20]}  Rxh3 {[%clk 0:00:31]} 32. Re3 {[%clk 0:00:10]}  Rh7 {[%clk 0:00:19]} 33. f4 {[%clk 0:00:07]}  Ng4 {[%clk 0:00:19]} 34. Rec3 {[%clk 0:00:00]}  Re8 {[%clk 0:00:18]} 0-1